[Event "Late-Titled-Tuesday-Blitz-February-27-2024"]
[Site "Chess.com"]
[Date "2024.02.27"]
[Round "6"]
[White "picturesquecheck"]
[Black "Nf3c5"]
[Result "1-0"]
[WhiteElo "2427"]
[BlackElo "2544"]
[TimeControl "180+1"]
[EndTime "15:06:30 PST"]
[Termination "picturesquecheck won by resignation"]

1. e4 {[%clk 0:03:00.9]} 1... c5 {[%clk 0:02:52.4]} 2. Nf3 {[%clk 0:03:00.3]}
2... Nc6 {[%clk 0:02:52.7]} 3. d4 {[%clk 0:02:58.7]} 3... cxd4 {[%clk
0:02:53.6]} 4. Nxd4 {[%clk 0:02:59.1]} 4... e5 {[%clk 0:02:53.9]} 5. Nb5 {[%clk
0:02:58.4]} 5... d6 {[%clk 0:02:54]} 6. N1c3 {[%clk 0:02:56.6]} 6... a6 {[%clk
0:02:53.3]} 7. Na3 {[%clk 0:02:56.7]} 7... Be6 {[%clk 0:02:54.2]} 8. Nd5 {[%clk
0:02:55.8]} 8... Bxd5 {[%clk 0:02:53.5]} 9. exd5 {[%clk 0:02:55.3]} 9... Nce7
{[%clk 0:02:53.9]} 10. c4 {[%clk 0:02:55]} 10... Nf6 {[%clk 0:02:45.2]} 11. Be2
{[%clk 0:02:55.2]} 11... Nf5 {[%clk 0:02:31.9]} 12. O-O {[%clk 0:02:54.4]} 12...
Be7 {[%clk 0:02:31.8]} 13. Nc2 {[%clk 0:02:51.6]} 13... h5 {[%clk 0:02:21.3]}
14. b3 {[%clk 0:02:51.3]} 14... h4 {[%clk 0:02:20.4]} 15. h3 {[%clk 0:02:50.6]}
15... Qb6 {[%clk 0:02:13.8]} 16. Bg5 {[%clk 0:02:44.2]} 16... Ne4 {[%clk
0:02:06.6]} 17. Bxe7 {[%clk 0:02:38]} 17... Kxe7 {[%clk 0:02:06.5]} 18. Qd3
{[%clk 0:02:34.8]} 18... Neg3 {[%clk 0:01:53.5]} 19. Rfe1 {[%clk 0:02:25.7]}
19... g6 {[%clk 0:01:33.7]} 20. Bg4 {[%clk 0:02:16.9]} 20... Kf6 {[%clk
0:01:29.1]} 21. Ne3 {[%clk 0:02:11]} 21... Nxe3 {[%clk 0:01:23.7]} 22. Rxe3
{[%clk 0:02:11.4]} 22... Nh5 {[%clk 0:01:23.6]} 23. Rf3+ {[%clk 0:01:58.5]}
23... Kg7 {[%clk 0:01:13]} 24. Bxh5 {[%clk 0:01:49.3]} 24... Rxh5 {[%clk
0:01:11.9]} 25. Re3 {[%clk 0:01:43.2]} 25... a5 {[%clk 0:01:08]} 26. Rae1 {[%clk
0:01:41.4]} 26... Qb4 {[%clk 0:01:03.7]} 27. Qc3 {[%clk 0:01:36.9]} 27... b6
{[%clk 0:00:58.3]} 28. Kh1 {[%clk 0:01:34.2]} 28... Qc5 {[%clk 0:00:57.2]} 29.
f4 {[%clk 0:01:32.2]} 29... f6 {[%clk 0:00:57]} 30. fxe5 {[%clk 0:01:32.2]}
30... fxe5 {[%clk 0:00:57.3]} 31. Rf3 {[%clk 0:01:30.3]} 31... Rf8 {[%clk
0:00:56.8]} 32. Rxf8 {[%clk 0:01:29.1]} 32... Kxf8 {[%clk 0:00:57.7]} 33. Rf1+
{[%clk 0:01:27.9]} 33... Rf5 {[%clk 0:00:58.1]} 34. Rxf5+ {[%clk 0:01:24.9]}
34... gxf5 {[%clk 0:00:58.7]} 35. Qf3 {[%clk 0:01:25.4]} 35... f4 {[%clk
0:00:58.6]} 36. Qe4 {[%clk 0:01:25.1]} 36... Qf2 {[%clk 0:00:57.2]} 37. Qf5+
{[%clk 0:01:20.2]} 37... Kg8 {[%clk 0:00:57.3]} 38. Qe6+ {[%clk 0:01:19.8]}
38... Kg7 {[%clk 0:00:56.4]} 39. Qe7+ {[%clk 0:01:18]} 39... Kg8 {[%clk
0:00:56.4]} 40. Qd8+ {[%clk 0:01:06.5]} 40... Kg7 {[%clk 0:00:54.2]} 41. Qxd6
{[%clk 0:01:02.8]} 41... Qe1+ {[%clk 0:00:45.6]} 42. Kh2 {[%clk 0:01:03.1]}
42... Qg3+ {[%clk 0:00:45.9]} 43. Kh1 {[%clk 0:01:03.6]} 43... Qe1+ {[%clk
0:00:36.6]} 44. Kh2 {[%clk 0:01:03.7]} 44... Qg3+ {[%clk 0:00:37.5]} 45. Kh1
{[%clk 0:01:04.1]} 45... f3 {[%clk 0:00:33.9]} 46. Qd7+ {[%clk 0:01:02.1]} 46...
Kh8 {[%clk 0:00:24.9]} 47. Qe8+ {[%clk 0:00:52.8]} 47... Kg7 {[%clk 0:00:23.5]}
48. Qe7+ {[%clk 0:00:47]} 48... Kg6 {[%clk 0:00:21]} 49. Qe6+ {[%clk 0:00:25.7]}
49... Kg5 {[%clk 0:00:20.4]} 50. Qg8+ {[%clk 0:00:21.4]} 50... Kf4 {[%clk
0:00:20.2]} 51. Qf7+ {[%clk 0:00:21.3]} 51... Ke3 {[%clk 0:00:15.5]} 52. Qxf3+
{[%clk 0:00:21.1]} 52... Qxf3 {[%clk 0:00:15.8]} 53. gxf3 {[%clk 0:00:21.7]}
53... Kxf3 {[%clk 0:00:16.4]} 54. d6 {[%clk 0:00:22.2]} 54... e4 {[%clk
0:00:16.9]} 55. d7 {[%clk 0:00:22.8]} 55... e3 {[%clk 0:00:17.6]} 56. d8=Q
{[%clk 0:00:23.1]} 56... e2 {[%clk 0:00:18.5]} 57. Qf6+ {[%clk 0:00:22.6]} 57...
Ke3 {[%clk 0:00:18.7]} 58. Qxh4 {[%clk 0:00:21.3]} 58... Kd2 {[%clk 0:00:18.7]}
59. Qd4+ {[%clk 0:00:21.2]} 59... Kc2 {[%clk 0:00:18.8]} 60. Qe3 {[%clk
0:00:21.1]} 60... Kd1 {[%clk 0:00:19.7]} 61. h4 {[%clk 0:00:21.3]} 61... e1=Q+
{[%clk 0:00:20]} 62. Qxe1+ {[%clk 0:00:21.6]} 62... Kxe1 {[%clk 0:00:20.9]} 63.
h5 {[%clk 0:00:22.1]} 63... Kd2 {[%clk 0:00:21.8]} 64. h6 {[%clk 0:00:22.4]}
64... Kc3 {[%clk 0:00:22.7]} 65. h7 {[%clk 0:00:23]} 65... Kb2 {[%clk
0:00:23.6]} 66. h8=Q+ {[%clk 0:00:23.4]} 66... Kxa2 {[%clk 0:00:24.5]} 67. Qf6
{[%clk 0:00:23.1]} 67... Kxb3 {[%clk 0:00:19.9]} 68. Qxb6+ {[%clk 0:00:23.1]}
68... Kxc4 {[%clk 0:00:19.6]} 69. Qxa5 {[%clk 0:00:23.4]} 1-0

[Event "Late-Titled-Tuesday-Blitz-February-27-2024"]
[Site "Chess.com"]
[Date "2024.02.27"]
[Round "6"]
[White "Bigfish1995"]
[Black "ArtemDyachuk"]
[Result "0-1"]
[WhiteElo "3143"]
[BlackElo "2719"]
[TimeControl "180+1"]
[EndTime "15:06:31 PST"]
[Termination "ArtemDyachuk won by resignation"]

1. e4 {[%clk 0:03:00.9]} 1... c5 {[%clk 0:03:00.2]} 2. Nf3 {[%clk 0:03:00.6]}
2... d6 {[%clk 0:03:00.8]} 3. Bb5+ {[%clk 0:02:59.3]} 3... Nd7 {[%clk
0:03:00.2]} 4. a4 {[%clk 0:02:58.9]} 4... g6 {[%clk 0:02:59.1]} 5. O-O {[%clk
0:02:51.1]} 5... Bg7 {[%clk 0:02:56.7]} 6. a5 {[%clk 0:02:51.6]} 6... Nf6 {[%clk
0:02:55.9]} 7. Nc3 {[%clk 0:02:51.7]} 7... O-O {[%clk 0:02:55.4]} 8. Be2 {[%clk
0:02:52.3]} 8... Rb8 {[%clk 0:02:52.4]} 9. d4 {[%clk 0:02:45.3]} 9... cxd4
{[%clk 0:02:51.7]} 10. Nxd4 {[%clk 0:02:45.1]} 10... Nc5 {[%clk 0:02:47.4]} 11.
f3 {[%clk 0:02:38.6]} 11... Bd7 {[%clk 0:02:47.1]} 12. Be3 {[%clk 0:02:35.6]}
12... b6 {[%clk 0:02:13.5]} 13. a6 {[%clk 0:02:14.1]} 13... Ne6 {[%clk
0:02:10.2]} 14. Ndb5 {[%clk 0:02:09.9]} 14... Ra8 {[%clk 0:02:07]} 15. f4 {[%clk
0:02:06.1]} 15... Bc6 {[%clk 0:02:06.6]} 16. Bf3 {[%clk 0:02:00.4]} 16... Qd7
{[%clk 0:02:06.2]} 17. e5 {[%clk 0:01:59.9]} 17... Bxb5 {[%clk 0:01:50.6]} 18.
Nxb5 {[%clk 0:01:57.1]} 18... Qxb5 {[%clk 0:01:49.9]} 19. exf6 {[%clk
0:01:57.6]} 19... Bxf6 {[%clk 0:01:49.8]} 20. Bxa8 {[%clk 0:01:58.5]} 20... Rxa8
{[%clk 0:01:50.1]} 21. Ra3 {[%clk 0:01:39.6]} 21... Qxb2 {[%clk 0:01:41.3]} 22.
Rb3 {[%clk 0:01:37.5]} 22... Qa2 {[%clk 0:01:39.3]} 23. f5 {[%clk 0:01:38.1]}
23... gxf5 {[%clk 0:01:23.9]} 24. Rxf5 {[%clk 0:01:36.6]} 24... Rc8 {[%clk
0:01:24]} 25. Rf2 {[%clk 0:01:08.3]} 25... Qxa6 {[%clk 0:01:20.5]} 26. Bh6
{[%clk 0:01:04.4]} 26... Qa1 {[%clk 0:01:10]} 27. Rg3+ {[%clk 0:00:55]} 27...
Kh8 {[%clk 0:01:07.5]} 28. Qxa1 {[%clk 0:00:55.3]} 28... Bxa1 {[%clk 0:01:07.5]}
29. Rxf7 {[%clk 0:00:56.2]} 29... Bf6 {[%clk 0:01:01]} 30. Kf1 {[%clk
0:00:47.4]} 30... a5 {[%clk 0:00:31.8]} 31. Re3 {[%clk 0:00:41.5]} 31... Nd4
{[%clk 0:00:26.8]} 32. g4 {[%clk 0:00:26.2]} 32... Nxc2 {[%clk 0:00:20.7]} 33.
Rexe7 {[%clk 0:00:18.7]} 33... Bxe7 {[%clk 0:00:17.2]} 34. Rxe7 {[%clk
0:00:19.6]} 34... a4 {[%clk 0:00:17.7]} 35. Ra7 {[%clk 0:00:19.7]} 35... a3
{[%clk 0:00:17.4]} 36. Ke2 {[%clk 0:00:19.7]} 36... b5 {[%clk 0:00:15]} 37. Bg7+
{[%clk 0:00:17.1]} 37... Kg8 {[%clk 0:00:14.5]} 38. Bf6 {[%clk 0:00:17.4]} 38...
b4 {[%clk 0:00:14.4]} 39. Rg7+ {[%clk 0:00:17.6]} 39... Kf8 {[%clk 0:00:12.9]}
40. Rxh7 {[%clk 0:00:18.2]} 40... b3 {[%clk 0:00:07.3]} 41. Rh8+ {[%clk
0:00:17.6]} 41... Kf7 {[%clk 0:00:07.6]} 42. Rxc8 {[%clk 0:00:16.8]} 42... Kxf6
{[%clk 0:00:06.5]} 43. Kd2 {[%clk 0:00:15.2]} 43... a2 {[%clk 0:00:06.4]} 44.
Ra8 {[%clk 0:00:15.6]} 44... a1=Q {[%clk 0:00:06.5]} 45. Rxa1 {[%clk 0:00:15.7]}
45... Nxa1 {[%clk 0:00:07.4]} 46. Kc3 {[%clk 0:00:16.2]} 46... Nc2 {[%clk
0:00:07]} 47. Kxb3 {[%clk 0:00:16.1]} 47... Ne3 {[%clk 0:00:07.5]} 48. h3 {[%clk
0:00:16.1]} 48... Ng2 {[%clk 0:00:06.9]} 49. Kc4 {[%clk 0:00:15.7]} 49... Ke5
{[%clk 0:00:07.1]} 50. g5 {[%clk 0:00:13.9]} 50... Nf4 {[%clk 0:00:07.1]} 51. h4
{[%clk 0:00:14]} 51... d5+ {[%clk 0:00:07.1]} 52. Kc5 {[%clk 0:00:13.1]} 52...
d4 {[%clk 0:00:07.1]} 53. Kc4 {[%clk 0:00:13.3]} 53... Ke4 {[%clk 0:00:07.2]}
0-1

[Event "Late-Titled-Tuesday-Blitz-February-27-2024"]
[Site "Chess.com"]
[Date "2024.02.27"]
[Round "6"]
[White "rose107"]
[Black "Resignify"]
[Result "1/2-1/2"]
[WhiteElo "2118"]
[BlackElo "2241"]
[TimeControl "180+1"]
[EndTime "15:06:36 PST"]
[Termination "Game drawn by repetition"]

1. e4 {[%clk 0:03:00.9]} 1... d6 {[%clk 0:02:59.7]} 2. d4 {[%clk 0:02:58]} 2...
Nf6 {[%clk 0:02:59.8]} 3. Nc3 {[%clk 0:02:52.3]} 3... g6 {[%clk 0:03:00.1]} 4.
Nf3 {[%clk 0:02:51.2]} 4... Bg7 {[%clk 0:03:00.4]} 5. Bc4 {[%clk 0:02:50.2]}
5... c6 {[%clk 0:02:59.7]} 6. O-O {[%clk 0:02:49]} 6... d5 {[%clk 0:02:59.6]} 7.
exd5 {[%clk 0:02:45.4]} 7... cxd5 {[%clk 0:03:00.5]} 8. Bb5+ {[%clk 0:02:43.3]}
8... Nbd7 {[%clk 0:02:59.2]} 9. Bg5 {[%clk 0:02:39.2]} 9... a6 {[%clk
0:02:58.3]} 10. Ba4 {[%clk 0:02:37.7]} 10... O-O {[%clk 0:02:54.8]} 11. Qd2
{[%clk 0:02:35.8]} 11... b5 {[%clk 0:02:51.4]} 12. Bb3 {[%clk 0:02:33.7]} 12...
Bb7 {[%clk 0:02:47.5]} 13. Bh6 {[%clk 0:02:31]} 13... Nb6 {[%clk 0:02:24.5]} 14.
Bxg7 {[%clk 0:02:15.1]} 14... Kxg7 {[%clk 0:02:24.7]} 15. Ne5 {[%clk 0:02:14.8]}
15... Nc4 {[%clk 0:02:13.9]} 16. Bxc4 {[%clk 0:02:13.3]} 16... dxc4 {[%clk
0:02:11.7]} 17. Rad1 {[%clk 0:02:10.8]} 17... Qd6 {[%clk 0:01:56.1]} 18. a3
{[%clk 0:02:08.1]} 18... Rad8 {[%clk 0:01:51.9]} 19. Rfe1 {[%clk 0:01:54.6]}
19... Rfe8 {[%clk 0:01:47.9]} 20. Qg5 {[%clk 0:01:44.8]} 20... h6 {[%clk
0:01:43.7]} 21. Qg3 {[%clk 0:01:35.9]} 21... Nh5 {[%clk 0:01:33.2]} 22. Qe3
{[%clk 0:01:31.6]} 22... Nf6 {[%clk 0:01:30.7]} 23. Qg3 {[%clk 0:01:29.5]} 23...
Qb8 {[%clk 0:01:17]} 24. h3 {[%clk 0:01:21]} 24... Nd7 {[%clk 0:01:03.4]} 25.
Re3 {[%clk 0:00:52.4]} 25... Nxe5 {[%clk 0:00:56.5]} 26. Rxe5 {[%clk 0:00:51]}
26... e6 {[%clk 0:00:52.6]} 27. Ne4 {[%clk 0:00:47.4]} 27... Bxe4 {[%clk
0:00:50.6]} 28. Rxe4 {[%clk 0:00:46.4]} 28... Qxg3 {[%clk 0:00:49.5]} 29. fxg3
{[%clk 0:00:47.3]} 29... Rd5 {[%clk 0:00:48.2]} 30. Kf2 {[%clk 0:00:45.9]} 30...
Red8 {[%clk 0:00:41]} 31. c3 {[%clk 0:00:45.6]} 31... a5 {[%clk 0:00:39.2]} 32.
Rde1 {[%clk 0:00:41.7]} 32... b4 {[%clk 0:00:28.3]} 33. axb4 {[%clk 0:00:40.2]}
33... axb4 {[%clk 0:00:29.2]} 34. Re5 {[%clk 0:00:38.6]} 34... bxc3 {[%clk
0:00:24.5]} 35. bxc3 {[%clk 0:00:39.5]} 35... R8d6 {[%clk 0:00:14.2]} 36. Rxd5
{[%clk 0:00:35.8]} 36... Rxd5 {[%clk 0:00:14.1]} 37. Re5 {[%clk 0:00:34]} 37...
Kf6 {[%clk 0:00:07.7]} 38. Rxd5 {[%clk 0:00:19.1]} 38... exd5 {[%clk 0:00:08.6]}
39. Kf3 {[%clk 0:00:19.1]} 39... Kf5 {[%clk 0:00:04.5]} 40. h4 {[%clk 0:00:19]}
40... f6 {[%clk 0:00:02]} 41. g4+ {[%clk 0:00:18.4]} 41... Ke6 {[%clk
0:00:02.6]} 42. Kf4 {[%clk 0:00:18.1]} 42... g5+ {[%clk 0:00:02.4]} 43. hxg5
{[%clk 0:00:17.7]} 43... hxg5+ {[%clk 0:00:03.3]} 44. Ke3 {[%clk 0:00:16.6]}
44... Kd6 {[%clk 0:00:03.8]} 45. Kd2 {[%clk 0:00:15.2]} 45... Ke6 {[%clk
0:00:02.8]} 46. Ke3 {[%clk 0:00:14]} 46... f5 {[%clk 0:00:02.4]} 47. gxf5+
{[%clk 0:00:13.2]} 47... Kxf5 {[%clk 0:00:03.3]} 48. Kf3 {[%clk 0:00:10.8]}
48... g4+ {[%clk 0:00:03.6]} 49. Ke3 {[%clk 0:00:10.3]} 49... Kg5 {[%clk
0:00:03.9]} 50. g3 {[%clk 0:00:09.5]} 50... Kf5 {[%clk 0:00:04.3]} 51. Kd2
{[%clk 0:00:08.5]} 51... Ke4 {[%clk 0:00:04.2]} 52. Ke2 {[%clk 0:00:09.4]} 52...
Kf5 {[%clk 0:00:04.1]} 53. Ke3 {[%clk 0:00:09.5]} 53... Kg5 {[%clk 0:00:03.7]}
54. Kd2 {[%clk 0:00:09.7]} 54... Kf6 {[%clk 0:00:02.5]} 55. Ke2 {[%clk
0:00:09.5]} 55... Kf5 {[%clk 0:00:02.5]} 56. Ke3 {[%clk 0:00:09.6]} 56... Kg5
{[%clk 0:00:03.2]} 57. Kd2 {[%clk 0:00:09.8]} 57... Kf5 {[%clk 0:00:03.5]} 58.
Ke3 {[%clk 0:00:10]} 1/2-1/2

[Event "Late-Titled-Tuesday-Blitz-February-27-2024"]
[Site "Chess.com"]
[Date "2024.02.27"]
[Round "6"]
[White "lamomiajunior"]
[Black "hansen"]
[Result "0-1"]
[WhiteElo "2728"]
[BlackElo "2920"]
[TimeControl "180+1"]
[EndTime "15:06:39 PST"]
[Termination "hansen won by resignation"]

1. d4 {[%clk 0:03:00.9]} 1... Nf6 {[%clk 0:02:59.8]} 2. Nc3 {[%clk 0:03:01.4]}
2... d5 {[%clk 0:03:00]} 3. Bf4 {[%clk 0:03:02]} 3... a6 {[%clk 0:03:00.3]} 4.
e3 {[%clk 0:03:02.2]} 4... e6 {[%clk 0:02:59.4]} 5. g4 {[%clk 0:03:01.7]} 5...
Bd6 {[%clk 0:02:50.8]} 6. Qf3 {[%clk 0:03:01]} 6... Nc6 {[%clk 0:02:48.6]} 7. g5
{[%clk 0:02:57.9]} 7... Nd7 {[%clk 0:02:44.4]} 8. h4 {[%clk 0:02:50.4]} 8... b5
{[%clk 0:02:39.7]} 9. Bd3 {[%clk 0:02:40.5]} 9... b4 {[%clk 0:02:38.3]} 10. Nce2
{[%clk 0:02:40.6]} 10... Bb7 {[%clk 0:02:36.2]} 11. h5 {[%clk 0:02:36.4]} 11...
e5 {[%clk 0:02:34]} 12. dxe5 {[%clk 0:02:34.1]} 12... Ncxe5 {[%clk 0:02:33.6]}
13. Qg2 {[%clk 0:02:27.6]} 13... Nc5 {[%clk 0:02:29.5]} 14. Bxe5 {[%clk
0:01:34.9]} 14... Bxe5 {[%clk 0:02:28]} 15. Nd4 {[%clk 0:01:34.7]} 15... Bxd4
{[%clk 0:02:08.6]} 16. exd4 {[%clk 0:01:33.5]} 16... Qe7+ {[%clk 0:02:09.3]} 17.
Kd2 {[%clk 0:01:30.8]} 17... Ne4+ {[%clk 0:02:04.1]} 18. Kc1 {[%clk 0:00:58.3]}
18... Qxg5+ {[%clk 0:01:56.8]} 19. Qxg5 {[%clk 0:00:57.9]} 19... Nxg5 {[%clk
0:01:57.7]} 20. Ne2 {[%clk 0:00:54.6]} 20... a5 {[%clk 0:01:43.9]} 21. Rg1
{[%clk 0:00:52.2]} 21... Ne6 {[%clk 0:01:41.5]} 22. Bf5 {[%clk 0:00:50.4]} 22...
O-O {[%clk 0:01:29.4]} 23. Kd2 {[%clk 0:00:48.4]} 23... Ba6 {[%clk 0:01:23.9]}
24. c3 {[%clk 0:00:43]} 24... Rab8 {[%clk 0:01:19.1]} 25. Ng3 {[%clk 0:00:33.2]}
25... bxc3+ {[%clk 0:01:15.8]} 26. bxc3 {[%clk 0:00:34.1]} 26... c5 {[%clk
0:01:04.5]} 27. dxc5 {[%clk 0:00:12.9]} 27... Nxc5 {[%clk 0:01:04.3]} 28. h6
{[%clk 0:00:12.9]} 28... g6 {[%clk 0:01:00.4]} 29. Bc2 {[%clk 0:00:10]} 29...
Rfd8 {[%clk 0:00:45]} 30. Nh5 {[%clk 0:00:08.5]} 30... Rb6 {[%clk 0:00:39.4]}
31. Rae1 {[%clk 0:00:05.8]} 31... Kf8 {[%clk 0:00:35.5]} 32. Nf4 {[%clk
0:00:04.2]} 32... Rf6 {[%clk 0:00:27.8]} 33. Nh3 {[%clk 0:00:04.2]} 33... Ne4+
{[%clk 0:00:18.8]} 34. Bxe4 {[%clk 0:00:02.4]} 34... dxe4+ {[%clk 0:00:19.2]}
35. Kc1 {[%clk 0:00:02.5]} 35... Rc6 {[%clk 0:00:13.3]} 36. Re3 {[%clk
0:00:02.3]} 36... f5 {[%clk 0:00:11.1]} 37. Ng5 {[%clk 0:00:02.8]} 37... Rd7
{[%clk 0:00:11.7]} 38. f3 {[%clk 0:00:01.8]} 38... Bd3 {[%clk 0:00:07.2]} 39.
fxe4 {[%clk 0:00:02]} 39... fxe4 {[%clk 0:00:04.9]} 40. Kb2 {[%clk 0:00:02.9]}
40... Rb7+ {[%clk 0:00:04.4]} 41. Ka1 {[%clk 0:00:03.6]} 41... Rcb6 {[%clk
0:00:04]} 42. a3 {[%clk 0:00:02.7]} 42... Rb1+ {[%clk 0:00:03.1]} 43. Rxb1
{[%clk 0:00:02.7]} 43... Rxb1+ {[%clk 0:00:04]} 44. Ka2 {[%clk 0:00:03.6]} 44...
Rh1 {[%clk 0:00:04.6]} 45. Nxe4 {[%clk 0:00:03.9]} 45... Bxe4 {[%clk 0:00:04.5]}
46. Rxe4 {[%clk 0:00:04.8]} 46... Rxh6 {[%clk 0:00:04.9]} 47. Re5 {[%clk
0:00:05]} 47... Rh5 {[%clk 0:00:05.1]} 48. Re3 {[%clk 0:00:03.9]} 48... g5
{[%clk 0:00:04.5]} 49. Kb3 {[%clk 0:00:04.8]} 49... g4 {[%clk 0:00:03.8]} 50.
Re4 {[%clk 0:00:03.7]} 50... Rg5 {[%clk 0:00:04]} 51. Re1 {[%clk 0:00:03.4]}
51... g3 {[%clk 0:00:04.2]} 52. c4 {[%clk 0:00:04.3]} 52... h5 {[%clk
0:00:04.1]} 53. Rg1 {[%clk 0:00:05.2]} 53... h4 {[%clk 0:00:04.5]} 54. Kc3
{[%clk 0:00:04.9]} 54... Ke7 {[%clk 0:00:04.9]} 55. Kd4 {[%clk 0:00:04]} 55...
g2 {[%clk 0:00:05.2]} 56. Ke3 {[%clk 0:00:03.7]} 56... h3 {[%clk 0:00:05.8]} 57.
Kf3 {[%clk 0:00:04.2]} 57... h2 {[%clk 0:00:06.3]} 58. Rxg2 {[%clk 0:00:03.9]}
58... h1=Q {[%clk 0:00:06.7]} 0-1

[Event "Late-Titled-Tuesday-Blitz-February-27-2024"]
[Site "Chess.com"]
[Date "2024.02.27"]
[Round "6"]
[White "FuenfgegenWilly"]
[Black "ninguno46"]
[Result "0-1"]
[WhiteElo "2457"]
[BlackElo "2589"]
[TimeControl "180+1"]
[EndTime "15:06:53 PST"]
[Termination "ninguno46 won by checkmate"]

1. e4 {[%clk 0:02:50.5]} 1... c5 {[%clk 0:02:59.4]} 2. Nc3 {[%clk 0:02:49.7]}
2... Nc6 {[%clk 0:02:58.9]} 3. f4 {[%clk 0:02:50.1]} 3... g6 {[%clk 0:02:59.1]}
4. Nf3 {[%clk 0:02:51]} 4... Bg7 {[%clk 0:02:59]} 5. Bb5 {[%clk 0:02:51.7]} 5...
Nd4 {[%clk 0:02:58.8]} 6. O-O {[%clk 0:02:52.3]} 6... a6 {[%clk 0:02:55.4]} 7.
Bd3 {[%clk 0:02:52.3]} 7... d6 {[%clk 0:02:53.7]} 8. Nxd4 {[%clk 0:02:52.8]}
8... cxd4 {[%clk 0:02:53.2]} 9. Ne2 {[%clk 0:02:53.5]} 9... Nf6 {[%clk
0:02:50.5]} 10. c3 {[%clk 0:02:54.1]} 10... dxc3 {[%clk 0:02:48]} 11. dxc3
{[%clk 0:02:55]} 11... Nd7 {[%clk 0:02:44.6]} 12. Kh1 {[%clk 0:02:54.7]} 12...
b5 {[%clk 0:02:44.6]} 13. Ng3 {[%clk 0:02:53.7]} 13... Bb7 {[%clk 0:02:44]} 14.
f5 {[%clk 0:02:53.9]} 14... Ne5 {[%clk 0:02:40.5]} 15. Bc2 {[%clk 0:02:53.7]}
15... O-O {[%clk 0:02:33.7]} 16. Qe2 {[%clk 0:02:47.5]} 16... Rc8 {[%clk
0:02:32.5]} 17. a4 {[%clk 0:02:45]} 17... bxa4 {[%clk 0:02:29.9]} 18. Rxa4
{[%clk 0:02:45.9]} 18... Qc7 {[%clk 0:02:23.1]} 19. Bb3 {[%clk 0:02:40.7]} 19...
Kh8 {[%clk 0:02:17.7]} 20. Bg5 {[%clk 0:02:35.9]} 20... Rb8 {[%clk 0:02:08.3]}
21. Ba2 {[%clk 0:02:13]} 21... Bc6 {[%clk 0:02:06.1]} 22. Rd4 {[%clk 0:01:26.1]}
22... Bb5 {[%clk 0:02:03.4]} 23. c4 {[%clk 0:01:26.3]} 23... Bc6 {[%clk
0:02:02.6]} 24. Rdd1 {[%clk 0:01:22.6]} 24... a5 {[%clk 0:01:56.4]} 25. f6
{[%clk 0:01:19.9]} 25... exf6 {[%clk 0:01:55.7]} 26. Bxf6 {[%clk 0:01:20.8]}
26... Bd7 {[%clk 0:01:48.5]} 27. Qf2 {[%clk 0:01:16.6]} 27... Be6 {[%clk
0:01:45.2]} 28. b3 {[%clk 0:01:11.8]} 28... Bxf6 {[%clk 0:01:41.9]} 29. Qxf6+
{[%clk 0:01:11.5]} 29... Kg8 {[%clk 0:01:42.5]} 30. Nf5 {[%clk 0:01:10.4]} 30...
Bxf5 {[%clk 0:00:37.4]} 31. exf5 {[%clk 0:01:10.1]} 31... Rbd8 {[%clk
0:00:30.7]} 32. Bb1 {[%clk 0:01:07.6]} 32... Qc5 {[%clk 0:00:26.9]} 33. fxg6
{[%clk 0:00:57.9]} 33... hxg6 {[%clk 0:00:23.2]} 34. Rf4 {[%clk 0:00:55]} 34...
Nd7 {[%clk 0:00:12.9]} 35. Qxd6 {[%clk 0:00:46.3]} 35... Ne5 {[%clk 0:00:10.3]}
36. Qxd8 {[%clk 0:00:42.6]} 36... Rxd8 {[%clk 0:00:09.4]} 37. Rxd8+ {[%clk
0:00:43.5]} 37... Kg7 {[%clk 0:00:09.7]} 38. Rfd4 {[%clk 0:00:41.5]} 38... Qb4
{[%clk 0:00:09]} 39. Rd1 {[%clk 0:00:35]} 39... Ng4 {[%clk 0:00:08.9]} 40. Rc1
{[%clk 0:00:12.5]} 40... Qb6 {[%clk 0:00:06.6]} 41. h3 {[%clk 0:00:11.7]} 41...
Qxd8 {[%clk 0:00:05.9]} 42. hxg4 {[%clk 0:00:10.8]} 42... Qh4+ {[%clk
0:00:06.8]} 43. Kg1 {[%clk 0:00:10.8]} 43... Qxg4 {[%clk 0:00:07.7]} 44. Rf1
{[%clk 0:00:05.8]} 44... Qd4+ {[%clk 0:00:07.4]} 45. Kh2 {[%clk 0:00:05.5]}
45... f5 {[%clk 0:00:07.7]} 46. Rf3 {[%clk 0:00:05.3]} 46... Qe5+ {[%clk
0:00:07.3]} 47. Kh3 {[%clk 0:00:04.7]} 47... Kh6 {[%clk 0:00:06.5]} 48. Bd3
{[%clk 0:00:04.7]} 48... Kg5 {[%clk 0:00:05.9]} 49. Bf1 {[%clk 0:00:03.7]} 49...
f4 {[%clk 0:00:05.9]} 50. Kh2 {[%clk 0:00:03]} 50... Kf6 {[%clk 0:00:05.1]} 51.
Rd3 {[%clk 0:00:01.4]} 51... g5 {[%clk 0:00:05.3]} 52. Kg1 {[%clk 0:00:02.1]}
52... Qb2 {[%clk 0:00:04.8]} 53. g3 {[%clk 0:00:02.5]} 53... fxg3 {[%clk
0:00:04.2]} 54. Rxg3 {[%clk 0:00:03.4]} 54... Qd4+ {[%clk 0:00:04.2]} 55. Kg2
{[%clk 0:00:03]} 55... Qe4+ {[%clk 0:00:04.4]} 56. Rf3+ {[%clk 0:00:03.4]} 56...
Kg7 {[%clk 0:00:05.2]} 57. Kg3 {[%clk 0:00:04]} 57... Qh4+ {[%clk 0:00:03.8]}
58. Kg2 {[%clk 0:00:04.2]} 58... Qg4+ {[%clk 0:00:04.1]} 59. Rg3 {[%clk
0:00:04.4]} 59... Qe4+ {[%clk 0:00:04.7]} 60. Kh2 {[%clk 0:00:04.4]} 60... Kh6
{[%clk 0:00:04.9]} 61. Bg2 {[%clk 0:00:04.2]} 61... Qf4 {[%clk 0:00:04.1]} 62.
Kh3 {[%clk 0:00:04]} 62... Qh4# {[%clk 0:00:02.7]} 0-1